bitfinex-derivatives/quotes_BTCF0:USTF0_20250928
["timestamp","ask_amount","ask_price","bid_price","bid_amount"]
[1759085940302,0.14850222,110350.0,110340.0,1.3057464]
[1759085940499,0.16235222,110350.0,110340.0,1.3057464]
[1759085940696,0.50623939,110350.0,110340.0,1.3057464]
[1759085941205,0.48486551,110350.0,110340.0,0.4859464]
[1759085941405,0.48486551,110350.0,110340.0,1.3055864]
[1759085943910,0.48486551,110350.0,110340.0,0.4859464]
[1759085944109,0.48486551,110350.0,110340.0,1.3055064]
[1759085945218,0.48486551,110350.0,110340.0,0.4859464]
[1759085945513,0.57545281,110350.0,110340.0,1.3054264]
[1759085945703,0.48486551,110350.0,110340.0,0.4859464]
[1759085945900,0.48486551,110350.0,110340.0,1.3054264]
[1759085949716,0.48486551,110350.0,110340.0,0.9446264]
[1759085949917,0.48486551,110350.0,110340.0,1.3054264]
[1759085950119,0.48486551,110350.0,110340.0,1.2923164]
[1759085952718,0.48486551,110350.0,110340.0,0.4728764]
[1759085952924,0.57545381,110350.0,110340.0,1.2923164]
[1759085954723,0.48486551,110350.0,110340.0,1.2923164]
[1759085962429,0.48478893,110350.0,110340.0,1.63112699]
[1759085963238,0.48478893,110350.0,110340.0,1.67988848]
[1759085965831,0.57537713,110350.0,110340.0,1.67988848]
[1759085966731,0.57537713,110350.0,110340.0,1.63112699]
[1759085969936,0.23656654,110350.0,110340.0,1.63112699]
[1759085970125,0.57537713,110350.0,110340.0,1.63112699]
[1759085974833,0.57537713,110350.0,110340.0,1.2923164]
[1759085975032,0.57537713,110350.0,110340.0,1.27032699]
[1759085975236,0.93617713,110350.0,110340.0,1.27032699]
[1759085976835,0.93617713,110350.0,110340.0,1.31908848]
[1759085977334,0.93617713,110350.0,110340.0,1.27032699]
[1759085980935,0.93617713,110350.0,110340.0,1.31908848]
[1759085982732,0.84558893,110350.0,110340.0,1.31908848]
[1759085987044,0.84558893,110350.0,110340.0,1.33215848]
[1759085987439,0.48478893,110350.0,110340.0,1.33215848]
[1759085987846,0.48478893,110350.0,110340.0,1.69295848]
[1759085987847,0.13212834,110350.0,110340.0,1.69295848]
[1759085988149,0.13212834,110350.0,110340.0,2.03176907]
[1759085988346,0.13212834,110350.0,110340.0,1.69295848]
[1759085989242,0.47093893,110350.0,110340.0,1.69295848]
[1759085990850,0.10936834,110350.0,110340.0,2.03176907]
[1759085992853,0.10436834,110350.0,110340.0,2.03176907]
[1759085993052,0.10636834,110350.0,110340.0,2.03176907]
[1759085993254,0.10536834,110350.0,110340.0,2.03176907]
[1759085994246,0.10536834,110350.0,110340.0,2.43176907]
[1759085994749,0.10336834,110350.0,110340.0,2.43176907]
[1759085994949,0.10536834,110350.0,110340.0,2.43176907]
[1759085995852,0.02488216,110350.0,110340.0,2.43176907]
[1759085999955,0.03377566,110350.0,110340.0,2.43176907]
[1759086000158,0.02488216,110350.0,110340.0,2.43176907]
[1759086001456,0.004,110350.0,110340.0,2.43160907]
[1759086002457,0.004,110350.0,110340.0,1.61232907]
[1759086002657,0.004,110350.0,110340.0,2.79240907]
[1759086004260,0.002,110350.0,110340.0,2.79240907]
[1759086004960,0.09383616,110360.0,110350.0,0.1256773]
[1759086005161,0.04393204,110360.0,110350.0,0.82528789]
[1759086006161,0.05288326,110360.0,110350.0,0.82528789]
[1759086006563,0.05288326,110360.0,110350.0,0.4864773]
[1759086006761,0.05488326,110360.0,110350.0,0.82528789]
[1759086007363,0.05688326,110360.0,110350.0,0.82528789]
[1759086008465,0.05988326,110360.0,110350.0,0.82528789]
[1759086008664,0.13157627,110360.0,110350.0,0.82528789]
[1759086009062,0.10955627,110360.0,110350.0,0.82528789]
[1759086009560,0.13257627,110360.0,110350.0,0.82528789]
[1759086009863,0.13257627,110360.0,110350.0,0.4864773]
[1759086010052,0.13257627,110360.0,110350.0,1.64452789]
[1759086010363,0.10955627,110360.0,110350.0,1.64452789]
[1759086011164,0.10955627,110360.0,110350.0,1.69328938]
[1759086011556,0.10455627,110360.0,110350.0,1.69328938]
[1759086011759,0.10655627,110360.0,110350.0,1.69328938]
[1759086012764,0.10355627,110360.0,110350.0,1.69328938]
[1759086013066,0.10555627,110360.0,110350.0,1.69472938]
[1759086015766,0.12873627,110360.0,110350.0,0.87404938]
[1759086016070,0.12873627,110360.0,110350.0,1.69456938]
[1759086016769,0.12873627,110360.0,110350.0,1.64580789]
[1759086020666,0.12873627,110360.0,110350.0,0.82528789]
[1759086020870,0.12873627,110360.0,110350.0,1.64568789]
[1759086024271,0.12873627,110360.0,110350.0,1.64539989]
[1759086025374,0.10555627,110360.0,110350.0,1.64539989]
[1759086026777,0.10555627,110360.0,110350.0,1.69416138]
[1759086027678,0.10555627,110360.0,110350.0,1.69400138]
[1759086030581,0.10555627,110360.0,110350.0,0.87392138]
[1759086030778,0.12715627,110360.0,110350.0,1.69388138]
[1759086033481,0.12715627,110360.0,110350.0,0.87392138]
[1759086033683,0.12715627,110360.0,110350.0,1.69388138]
[1759086036784,0.12715627,110360.0,110350.0,1.69368138]
[1759086037883,0.12715627,110360.0,110350.0,0.87392138]
[1759086038087,0.12715627,110360.0,110350.0,1.69368138]
[1759086039381,0.12715627,110360.0,110350.0,0.87392138]
[1759086039786,0.12715627,110360.0,110350.0,0.53523879]
[1759086039787,0.21773637,110360.0,110350.0,0.53523879]
[1759086039988,0.21773637,110360.0,110350.0,1.33276138]
[1759086040886,0.21773637,110360.0,110350.0,1.33292138]
[1759086044489,0.21765358,110360.0,110350.0,1.33292138]
[1759086045092,0.21765358,110360.0,110350.0,0.51312138]
[1759086045389,0.21765358,110360.0,110350.0,1.33280138]
[1759086045589,0.21765358,110360.0,110350.0,0.51312138]
[1759086045790,0.21765358,110360.0,110350.0,1.33276138]
[1759086050297,0.21765358,110360.0,110350.0,0.99407879]
[1759086050503,0.21765358,110360.0,110350.0,1.33276138]
[1759086051606,0.12707348,110360.0,110350.0,1.33276138]
[1759086055508,0.12707348,110360.0,110350.0,0.51312138]
[1759086055800,0.12707348,110360.0,110350.0,1.33280138]
[1759086056504,0.12707348,110360.0,110350.0,1.28403989]
[1759086060307,0.12707348,110360.0,110350.0,0.9453573]
[1759086060509,0.12707348,110360.0,110350.0,1.28403989]
[1759086065609,0.1270955,110360.0,110350.0,1.28403989]
[1759086066910,0.1270955,110360.0,110350.0,1.33280138]
[1759086071317,0.1270955,110360.0,110350.0,0.99411879]
[1759086071614,0.1270955,110360.0,110350.0,0.51312138]
[1759086071812,0.1270955,110360.0,110350.0,1.33260138]
[1759086073416,0.12709864,110360.0,110350.0,1.33260138]
[1759086082924,0.12709864,110360.0,110350.0,1.69340138]
[1759086084426,0.46580516,110360.0,110350.0,1.69342531]
[1759086084630,0.12709864,110360.0,110350.0,1.69342531]
[1759086086622,0.10549864,110360.0,110350.0,1.69342531]
[1759086089632,0.10549864,110360.0,110350.0,1.33262531]
[1759086089930,0.10549864,110360.0,110350.0,1.69342531]
[1759086093533,0.10549864,110360.0,110350.0,1.33262531]
[1759086093740,0.10549864,110360.0,110350.0,1.69342531]
[1759086093925,0.12737864,110360.0,110350.0,0.87394531]
[1759086094233,0.12737864,110360.0,110350.0,1.69330531]
[1759086094629,0.12737864,110360.0,110350.0,1.33250531]
[1759086094831,0.12737864,110360.0,110350.0,0.87394531]
[1759086095032,0.12737864,110360.0,110350.0,1.69342531]
[1759086100134,0.46608516,110360.0,110350.0,0.53523879]
[1759086100333,0.48002516,110360.0,110350.0,1.69326531]
[1759086105238,0.14131864,110360.0,110350.0,1.69326531]
[1759086105437,0.48002516,110360.0,110350.0,1.69326531]
[1759086112050,0.48002516,110360.0,110350.0,1.33246531]
[1759086112239,0.48002516,110360.0,110350.0,1.69326531]
[1759086123347,0.48002516,110360.0,110350.0,0.87394531]
[1759086123550,0.48002516,110360.0,110350.0,1.69322531]
[1759086126755,0.48002516,110360.0,110350.0,0.87394531]
[1759086126957,0.48002516,110360.0,110350.0,1.69322531]
[1759086128660,0.10549864,110360.0,110350.0,1.69322531]
[1759086133666,0.10549864,110360.0,110350.0,1.33242531]
[1759086133964,0.10549864,110360.0,110350.0,1.69322531]
[1759086134670,0.10549864,110360.0,110350.0,1.33242531]
[1759086134862,0.10549864,110360.0,110350.0,1.69322531]
[1759086137069,0.46734516,110360.0,110350.0,0.87394531]
[1759086137267,0.46734516,110360.0,110350.0,1.69318531]
[1759086138373,0.46734516,110360.0,110350.0,0.87394531]
[1759086138669,0.46734516,110360.0,110350.0,1.69318531]
[1759086141671,0.47995516,110360.0,110350.0,0.53523879]
[1759086141871,0.47995516,110360.0,110350.0,1.68113531]
[1759086146273,0.14124864,110360.0,110350.0,1.68114106]
[1759086146869,0.14124864,110360.0,110350.0,1.63237957]
[1759086154182,0.23182874,110360.0,110350.0,0.45233957]
[1759086154377,0.23182874,110360.0,110350.0,1.27153957]
[1759086156782,0.23182874,110360.0,110350.0,1.33235106]
[1759086159783,0.14124864,110360.0,110350.0,1.33235106]
[1759086161188,0.12863864,110360.0,110350.0,1.33235106]
[1759086171491,0.14166864,110360.0,110350.0,1.33235106]
[1759086171890,0.48038091,110360.0,110350.0,1.33235106]
[1759086172797,0.14166864,110360.0,110350.0,1.33235106]
[1759086187210,0.12081423,110360.0,110350.0,1.33235106]
[1759086187410,0.1416777,110360.0,110350.0,1.33235106]
[1759086195410,0.1286477,110360.0,110350.0,1.33235106]
[1759086196811,0.1286477,110360.0,110350.0,1.28358957]
[1759086205216,0.1286477,110360.0,110350.0,0.46438957]
[1759086205414,0.1286477,110360.0,110350.0,1.28350957]
[1759086206818,0.1286477,110360.0,110350.0,1.33227106]
[1759086208219,0.46736224,110360.0,110350.0,1.33227333]
[1759086218330,0.46736224,110360.0,110350.0,0.99355879]
[1759086218629,0.46736224,110360.0,110350.0,1.33227333]
[1759086222333,0.46736224,110360.0,110350.0,0.17443879]
[1759086222534,0.46736224,110360.0,110350.0,1.33219333]
[1759086226440,0.46736224,110360.0,110350.0,0.51315333]
[1759086226634,0.46736224,110360.0,110350.0,1.33219333]
[1759086227132,0.1055077,110360.0,110350.0,1.73219333]
[1759086227339,0.03381469,110360.0,110350.0,2.07090787]
[1759086228238,0.03381469,110360.0,110350.0,1.73219333]
[1759086230740,0.39472923,110360.0,110350.0,0.17443879]
[1759086230932,0.39472923,110360.0,110350.0,1.33219333]
[1759086231942,0.46725547,110360.0,110350.0,1.33219333]
[1759086233031,0.12854093,110360.0,110350.0,1.33219333]
[1759086233238,0.46725547,110360.0,110350.0,1.33219333]
[1759086233438,0.12854093,110360.0,110350.0,1.33219333]
[1759086233637,0.46725547,110360.0,110350.0,1.33219333]
[1759086236040,0.10634093,110360.0,110350.0,1.33219333]
[1759086236241,0.44505547,110360.0,110350.0,1.33219333]
[1759086242050,0.10634093,110360.0,110350.0,1.33219333]
[1759086242245,0.44505547,110360.0,110350.0,1.33219333]
[1759086247550,0.10634093,110360.0,110350.0,1.33219333]
[1759086250553,0.10434093,110360.0,110350.0,1.33219333]
[1759086250756,0.10234093,110360.0,110350.0,1.33219333]
[1759086251256,0.10434093,110360.0,110350.0,1.33219333]
[1759086251555,0.10634093,110360.0,110350.0,1.33219333]
[1759086252058,0.12854093,110360.0,110350.0,1.33219333]
[1759086252358,0.10634093,110360.0,110350.0,1.33219333]
[1759086255961,0.10434093,110360.0,110350.0,1.33219333]
[1759086256664,0.10434093,110360.0,110350.0,0.17443879]
[1759086256960,0.12690093,110360.0,110350.0,1.33251333]
[1759086258262,0.12890093,110360.0,110350.0,1.33251333]
[1759086258467,0.46761547,110360.0,110350.0,1.33251333]
[1759086262772,0.46761547,110360.0,110350.0,0.99379879]
[1759086262973,0.46761547,110360.0,110350.0,1.33251333]
[1759086264068,0.46763926,110360.0,110350.0,1.33251333]
[1759086267178,0.12892472,110360.0,110350.0,1.33251333]
[1759086270375,0.12892472,110360.0,110350.0,1.33249197]
[1759086279989,0.12892473,110360.0,110350.0,1.33249197]
[1759086284394,0.10636473,110360.0,110350.0,1.33249197]
[1759086285188,0.10636473,110360.0,110350.0,0.99379879]
[1759086285389,0.10636473,110360.0,110350.0,1.33249197]
[1759086288297,0.10436473,110360.0,110350.0,1.33249197]
[1759086290397,0.10636473,110360.0,110350.0,1.33249197]
[1759086294199,0.10436473,110360.0,110350.0,1.33249197]
[1759086295005,0.10636473,110360.0,110350.0,1.33249197]
[1759086296803,0.10636473,110360.0,110350.0,0.99379879]
[1759086297006,0.10636473,110360.0,110350.0,1.33249197]
[1759086297304,0.10436473,110360.0,110350.0,1.33249197]
[1759086298697,0.02288727,110360.0,110350.0,1.69329197]
[1759086298897,0.02488727,110360.0,110350.0,1.69329197]
[1759086301403,0.02488727,110360.0,110350.0,2.09329197]
[1759086301605,0.02488727,110360.0,110350.0,2.04453048]
[1759086304508,0.02288727,110360.0,110350.0,2.04453048]
[1759086305212,0.002,110360.0,110350.0,1.7058373]
[1759086305416,0.002,110360.0,110350.0,2.04453048]
[1759086305708,0.08029604,110370.0,110360.0,0.12437]
[1759086305909,0.02085575,110370.0,110360.0,0.51188165]
[1759086306311,0.04332575,110370.0,110360.0,0.51188165]
[1759086306611,0.02085575,110370.0,110360.0,0.51188165]
[1759086307220,0.02285575,110370.0,110360.0,0.51188165]
[1759086307422,0.02485575,110370.0,110360.0,0.51188165]
[1759086307617,0.02485575,110370.0,110360.0,1.33164165]
[1759086308020,0.03373887,110370.0,110360.0,1.33164165]
[1759086309622,0.10578034,110370.0,110360.0,1.33164165]
[1759086309822,0.10378034,110370.0,110360.0,1.33164165]
[1759086310422,0.10378034,110370.0,110360.0,1.33172165]
[1759086311222,0.10378034,110370.0,110360.0,1.28290318]
[1759086311422,0.10578034,110370.0,110360.0,1.28290318]
[1759086311819,0.10578034,110370.0,110360.0,0.12437]
[1759086312022,0.10578034,110370.0,110360.0,1.28294318]
[1759086312522,0.10378034,110370.0,110360.0,0.46306318]
[1759086312822,0.10378034,110370.0,110360.0,1.28294318]
[1759086313224,0.10578034,110370.0,110360.0,1.28294318]
[1759086313422,0.10578034,110370.0,110360.0,0.46306318]
[1759086313723,0.10378034,110370.0,110360.0,1.28294318]
[1759086314322,0.10378034,110370.0,110360.0,0.46306318]
[1759086314619,0.12897034,110370.0,110360.0,1.28318318]
[1759086314822,0.10578034,110370.0,110360.0,1.28318318]
[1759086315724,0.10378034,110370.0,110360.0,1.28318318]
[1759086315925,0.12697034,110370.0,110360.0,1.28314318]
[1759086316417,0.10378034,110370.0,110360.0,1.28314318]
[1759086317429,0.10578034,110370.0,110360.0,1.28314318]
[1759086318429,0.10578034,110370.0,110360.0,0.46306318]
[1759086318629,0.10578034,110370.0,110360.0,1.28322318]
[1759086321027,0.10378034,110370.0,110360.0,1.28322318]
[1759086321924,0.10578034,110370.0,110360.0,1.28322318]
[1759086322125,0.10578034,110370.0,110360.0,1.33204165]
[1759086322324,0.10578034,110370.0,110360.0,1.28322318]
[1759086323024,0.10378034,110370.0,110360.0,1.28322318]
[1759086323729,0.10578034,110370.0,110360.0,1.28322318]
[1759086324629,0.10378034,110370.0,110360.0,1.28322318]
[1759086324828,0.10378034,110370.0,110360.0,1.33204165]
[1759086325128,0.10378034,110370.0,110360.0,1.28322318]
[1759086325329,0.10378034,110370.0,110360.0,1.33204165]
[1759086325528,0.10578034,110370.0,110360.0,1.33204165]
[1759086326826,0.10578034,110370.0,110360.0,1.28322318]
[1759086327628,0.10378034,110370.0,110360.0,1.28322318]
[1759086328529,0.10578034,110370.0,110360.0,1.28322318]
[1759086329730,0.10378034,110370.0,110360.0,1.28322318]
[1759086330030,0.10378034,110370.0,110360.0,1.28306318]
[1759086330830,0.10178034,110370.0,110360.0,1.28306318]
[1759086331531,0.10378034,110370.0,110360.0,1.28306318]
[1759086331730,0.10578034,110370.0,110360.0,1.28306318]
[1759086332130,0.10578034,110370.0,110360.0,0.46306318]
[1759086332330,0.10578034,110370.0,110360.0,0.94421]
[1759086332534,0.10578034,110370.0,110360.0,0.80160512]
[1759086332735,0.10578034,110370.0,110360.0,1.62144512]
[1759086336835,0.10578034,110370.0,110360.0,1.67026359]
[1759086342527,0.10578034,110370.0,110360.0,2.03106359]
[1759086346330,0.10578034,110370.0,110360.0,1.35382847]
[1759086346526,0.10578034,110370.0,110360.0,2.03106359]
[1759086356944,0.10578034,110370.0,110360.0,1.21122359]
[1759086357145,0.10578034,110370.0,110360.0,2.03118359]
[1759086357640,0.10578034,110370.0,110360.0,1.67038359]
[1759086357846,0.10578034,110370.0,110360.0,2.03118359]
[1759086358044,0.10378034,110370.0,110360.0,2.03118359]
[1759086358747,0.10578034,110370.0,110360.0,2.03118359]
[1759086361943,0.10578034,110370.0,110360.0,2.03098359]
[1759086363849,0.10378034,110370.0,110360.0,2.03098359]
[1759086365049,0.10578034,110370.0,110360.0,2.03098359]
[1759086367452,0.10178034,110370.0,110360.0,2.03098359]
[1759086368154,0.10578034,110370.0,110360.0,2.03098359]
[1759086368354,0.11178034,110370.0,110360.0,2.03098359]
[1759086368950,0.11178034,110370.0,110360.0,1.35374847]
[1759086369151,0.11178034,110370.0,110360.0,2.03098359]
[1759086369957,0.10578034,110370.0,110360.0,2.03098359]
[1759086370158,0.10878034,110370.0,110360.0,2.03098359]
[1759086371053,0.11178034,110370.0,110360.0,2.03098359]
[1759086374652,0.10778034,110370.0,110360.0,2.03098359]
[1759086374859,0.10978034,110370.0,110360.0,2.03098359]
[1759086375356,0.11178034,110370.0,110360.0,2.03098359]
[1759086376259,0.10878034,110370.0,110360.0,1.35374847]
[1759086376560,0.10878034,110370.0,110360.0,2.03098359]
[1759086376963,0.10578034,110370.0,110360.0,2.03098359]
[1759086377257,0.11178034,110370.0,110360.0,2.03098359]
[1759086377449,0.03085575,110370.0,110360.0,1.98216512]
[1759086377758,0.03085575,110370.0,110360.0,2.03098359]
[1759086378160,0.03085575,110370.0,110360.0,2.43098359]
[1759086378659,0.030843,110370.0,110360.0,2.76960115]
[1759086378860,0.05413528,110390.0,110380.0,0.02977]
[1759086378861,0.04354641,110390.0,110380.0,0.02977]
[1759086379054,0.07355747,110390.0,110380.0,1.63930766]
[1759086379252,0.07355747,110390.0,110380.0,1.97792522]
[1759086379459,0.05149747,110390.0,110380.0,1.97792522]
[1759086379663,0.12330132,110390.0,110380.0,1.97792522]
[1759086379857,0.10181491,110390.0,110380.0,1.97792522]
[1759086380555,0.10781491,110390.0,110380.0,1.97792522]
[1759086380763,0.10781491,110390.0,110380.0,1.15836522]
[1759086380964,0.10781491,110390.0,110380.0,1.97784522]
[1759086382068,0.11481491,110390.0,110380.0,1.97784522]
[1759086382666,0.11481491,110390.0,110380.0,1.15836522]
[1759086382866,0.11481491,110390.0,110380.0,1.97776522]
[1759086383970,0.11481491,110390.0,110380.0,1.97780522]
[1759086387471,0.09397288,110390.0,110380.0,1.97780522]
[1759086388674,0.02216903,110390.0,110380.0,1.97780522]
[1759086388862,0.02216903,110390.0,110380.0,2.33860522]
[1759086392373,0.02216903,110390.0,110380.0,1.99984825]
[1759086399471,0.013,110390.0,110380.0,1.99984825]
[1759086399671,0.013,110390.0,110380.0,2.04863671]
[1759086405577,0.013,110390.0,110380.0,2.04851671]
[1759086407078,0.013,110390.0,110380.0,1.22919671]
[1759086407277,0.013,110390.0,110380.0,2.04855671]
[1759086409374,0.013,110390.0,110380.0,1.99976825]
[1759086411384,0.013,110390.0,110380.0,2.04850011]
[1759086413480,0.013,110390.0,110380.0,0.50754011]
[1759086413784,0.013,110390.0,110380.0,1.22914011]
[1759086413986,0.013,110390.0,110380.0,2.04874011]
[1759086417180,0.03387265,110390.0,110380.0,2.04874011]
[1759086419788,0.03387265,110390.0,110380.0,2.04890011]
[1759086423397,0.03387265,110390.0,110380.0,2.04918011]
[1759086423691,0.03387265,110390.0,110380.0,1.22914011]
[1759086424088,0.03387923,110390.0,110380.0,2.04918011]
[1759086424390,0.03387923,110390.0,110380.0,1.22914011]
[1759086424592,0.03387923,110390.0,110380.0,2.04926011]
[1759086424889,0.03387923,110390.0,110380.0,2.04950011]
[1759086425079,0.04769923,110390.0,110380.0,1.22207011]
[1759086425284,0.1277011,110380.0,110370.0,0.0216]
[1759086425489,0.84785848,110380.0,110370.0,0.0216]
[1759086425684,1.24785848,110380.0,110370.0,0.0216]
[1759086426692,1.24885848,110380.0,110370.0,0.0216]
[1759086426892,0.03714,110370.0,110360.0,0.4729743]
[1759086427093,0.39649738,110370.0,110360.0,1.34222616]
[1759086427288,0.37561815,110370.0,110360.0,1.34222616]
[1759086427896,0.37561815,110370.0,110360.0,0.52170616]
[1759086428100,0.37561815,110370.0,110360.0,1.34222616]
[1759086428298,0.37561815,110370.0,110360.0,1.2934943]
[1759086429196,0.37661815,110370.0,110360.0,0.4729743]
[1759086429396,0.37661815,110370.0,110360.0,1.2935743]
[1759086429596,0.37861815,110370.0,110360.0,1.2935743]
[1759086432691,0.04014,110370.0,110360.0,1.2935743]
[1759086434101,0.1307084,110370.0,110360.0,1.2935743]
[1759086434793,0.1307084,110370.0,110360.0,0.4729743]
[1759086434999,0.86918655,110370.0,110360.0,1.2933743]
[1759086435497,0.5307084,110370.0,110360.0,1.2933743]
[1759086437099,0.86918655,110370.0,110360.0,1.2932943]
[1759086438899,0.86918655,110370.0,110360.0,0.9324943]
[1759086439398,0.86918655,110370.0,110360.0,0.1121743]
[1759086440804,1.22998655,110370.0,110360.0,0.1121743]
[1759086440994,1.22998655,110370.0,110360.0,0.0216]
[1759086441192,0.1249075,110360.0,110350.0,1.2942388]
[1759086441593,0.46338565,110360.0,110350.0,1.2942388]
[1759086442394,0.48417869,110360.0,110350.0,0.1152457]
[1759086442700,1.24497869,110360.0,110350.0,0.1152457]
[1759086442996,1.31772953,110360.0,110350.0,0.1152457]
[1759086443194,1.29693649,110360.0,110350.0,0.1152457]
[1759086443599,2.11745649,110360.0,110350.0,0.1152457]
[1759086444198,2.13864166,110360.0,110350.0,0.1152457]
[1759086444399,2.11745649,110360.0,110350.0,0.1152457]
[1759086444604,2.13864022,110360.0,110350.0,0.1152457]
[1759086445104,1.31812022,110360.0,110350.0,0.1152457]
[1759086445307,2.13876022,110360.0,110350.0,0.1152457]
[1759086446504,2.13872022,110360.0,110350.0,0.1152457]
[1759086447007,1.31812022,110360.0,110350.0,0.1152457]
[1759086447305,2.13868022,110360.0,110350.0,0.1152457]
[1759086448904,1.31812022,110360.0,110350.0,0.1152457]
[1759086449105,2.13872022,110360.0,110350.0,0.1152457]
[1759086449995,2.13864022,110360.0,110350.0,0.1152457]
[1759086450606,2.13864022,110360.0,110350.0,0.002]
[1759086451107,2.13856022,110360.0,110350.0,0.002]
[1759086452206,2.13856022,110360.0,110350.0,0.0925848]
[1759086452409,2.13856022,110360.0,110350.0,0.002]
[1759086453205,2.13856022,110360.0,110350.0,0.0925856]
[1759086453605,1.31812022,110360.0,110350.0,0.0925856]
[1759086453807,2.13852022,110360.0,110350.0,0.0925856]
[1759086454308,2.47767961,110360.0,110350.0,0.0925856]
[1759086455506,1.65727961,110360.0,110350.0,0.0925856]
[1759086455701,2.47763961,110360.0,110350.0,0.0925856]
[1759086456607,1.65727961,110360.0,110350.0,0.0925856]
[1759086456804,2.47759961,110360.0,110350.0,0.0925856]
[1759086458811,2.47759961,110360.0,110350.0,0.002]
[1759086459312,2.47759961,110360.0,110350.0,0.0925857]
[1759086459512,2.07759961,110360.0,110350.0,0.0925857]
[1759086459814,2.07759961,110360.0,110350.0,0.002]
[1759086462912,2.47759961,110360.0,110350.0,0.002]
[1759086463114,0.1249239,110340.0,110330.0,0.1132564]
[1759086463311,2.02613965,110340.0,110330.0,0.1132564]
[1759086465003,2.02613965,110340.0,110330.0,0.1162564]
[1759086465414,2.02613965,110340.0,110330.0,0.1232564]
[1759086467409,2.03545052,110340.0,110330.0,0.1232564]
[1759086470710,1.21501052,110340.0,110330.0,0.1232564]
[1759086471013,2.03585052,110340.0,110330.0,0.1232564]
[1759086472326,1.21501052,110340.0,110330.0,0.1232564]
[1759086472513,2.03585052,110340.0,110330.0,0.1232564]
[1759086477121,2.43585052,110340.0,110330.0,0.01]
[1759086477420,0.1268721,110330.0,110320.0,0.1126103]
[1759086477621,0.8476746,110330.0,110320.0,0.1126103]
[1759086477808,1.18649337,110330.0,110320.0,0.0906103]
[1759086478012,0.1268801,110320.0,110310.0,0.4734128]
[1759086478220,0.1268801,110320.0,110310.0,0.1126128]
[1759086478221,1.62527764,110320.0,110310.0,0.1126128]
[1759086478718,1.61027764,110320.0,110310.0,0.1126128]
[1759086479421,1.61027764,110320.0,110310.0,0.1146128]
[1759086479720,1.61027764,110320.0,110310.0,0.1186128]
[1759086480521,0.78951764,110320.0,110310.0,0.1186128]
[1759086480722,1.61067764,110320.0,110310.0,0.1186128]
[1759086481119,0.78951764,110320.0,110310.0,0.1186128]
[1759086481421,1.68145773,110320.0,110310.0,0.1186128]
[1759086482317,1.70264281,110320.0,110310.0,0.1186128]
[1759086482523,0.88156281,110320.0,110310.0,0.1186128]
[1759086482724,1.70264281,110320.0,110310.0,0.1186128]
[1759086483120,0.88156281,110320.0,110310.0,0.1186128]
[1759086483322,1.70264281,110320.0,110310.0,0.1186128]
[1759086483919,1.68141773,110320.0,110310.0,0.1186128]
[1759086487526,1.70263463,110320.0,110310.0,0.1186128]
[1759086490933,1.70279463,110320.0,110310.0,0.1186128]
[1759086493627,0.94954699,110320.0,110310.0,0.1186128]
[1759086493928,1.62746453,110320.0,110310.0,0.1186128]
[1759086495633,1.62814453,110320.0,110310.0,0.1186128]
[1759086498640,0.80594453,110320.0,110310.0,0.1186128]
[1759086498837,1.62850453,110320.0,110310.0,0.1186128]
[1759086507351,1.62850453,110320.0,110310.0,0.16734466]
[1759086507549,1.62850453,110320.0,110310.0,0.1186128]
[1759086508850,0.80594453,110320.0,110310.0,0.1186128]
[1759086509047,1.62846453,110320.0,110310.0,0.1186128]
[1759086509446,1.62846453,110320.0,110310.0,0.16734466]
[1759086514352,1.28981662,110320.0,110310.0,0.16734466]
[1759086517053,1.28981662,110320.0,110310.0,0.1186128]
[1759086520255,1.38042722,110320.0,110310.0,0.1186128]
[1759086520857,1.38042722,110320.0,110310.0,0.16734466]
[1759086521058,1.28981662,110320.0,110310.0,0.16734466]
[1759086525659,1.38042722,110320.0,110310.0,0.16734466]
[1759086532962,1.04143759,110320.0,110310.0,0.16734466]
[1759086533163,1.38042722,110320.0,110310.0,0.16734466]
[1759086549075,2.50136668,110320.0,110310.0,0.006]
[1759086549382,0.1265588,110310.0,110300.0,0.09071615]
[1759086549679,0.1265588,110310.0,110300.0,0.13944801]
[1759086549680,1.18655496,110310.0,110300.0,0.13944801]
[1759086549975,1.18655496,110310.0,110300.0,0.09071615]
[1759086550276,2.00799496,110310.0,110300.0,0.09071615]
[1759086550477,1.18655496,110310.0,110300.0,0.09171615]
[1759086550676,2.00799496,110310.0,110300.0,0.09171615]
[1759086551482,2.00863496,110310.0,110300.0,0.09171615]
[1759086552369,2.00963496,110310.0,110300.0,0.09171615]
[1759086553282,1.18755496,110310.0,110300.0,0.09171615]
[1759086553489,2.00955496,110310.0,110300.0,0.09171615]
[1759086554379,1.18755496,110310.0,110300.0,0.09171615]
[1759086554583,2.00947496,110310.0,110300.0,0.09171615]
[1759086555091,2.40947496,110310.0,110300.0,0.09171615]
[1759086555587,2.40947496,110310.0,110300.0,0.00109165]
[1759086557084,1.58755496,110310.0,110300.0,0.00109165]
[1759086557386,2.40939496,110310.0,110300.0,0.00109165]
[1759086559689,0.125937,110300.0,110290.0,0.0906296]
[1759086559985,0.84694353,110300.0,110290.0,0.0906296]
[1759086560783,1.67003518,110300.0,110290.0,0.0906296]
[1759086560984,1.67503518,110300.0,110290.0,0.0906296]
[1759086561178,0.85203518,110300.0,110290.0,0.0906296]
[1759086561480,1.67499518,110300.0,110290.0,0.0906296]
[1759086561785,1.68499518,110300.0,110290.0,0.0906296]
[1759086562285,0.86203518,110300.0,110290.0,0.0906296]
[1759086562585,1.68495518,110300.0,110290.0,0.0906296]
[1759086565782,1.68487518,110300.0,110290.0,0.0906296]
[1759086566288,0.86203518,110300.0,110290.0,0.0906296]
[1759086566481,1.68475518,110300.0,110290.0,0.0906296]
[1759086567891,1.68471518,110300.0,110290.0,0.0906296]
[1759086569192,0.86203518,110300.0,110290.0,0.0906296]
[1759086569392,1.68471518,110300.0,110290.0,0.0906296]
[1759086571996,0.86203518,110300.0,110290.0,0.0906296]
[1759086572293,1.68455518,110300.0,110290.0,0.1129996]
[1759086574197,2.02392367,110300.0,110290.0,0.0906296]
[1759086574494,1.66312367,110300.0,110290.0,0.0906296]
[1759086574695,2.02392367,110300.0,110290.0,0.0906296]
[1759086577600,1.66312367,110300.0,110290.0,0.0906296]
[1759086577801,2.02392367,110300.0,110290.0,0.0906296]
[1759086585610,1.66312367,110300.0,110290.0,0.0906296]
[1759086585907,2.02392367,110300.0,110290.0,0.0906296]
[1759086589508,1.34556555,110300.0,110290.0,0.0906296]
[1759086589706,2.02392367,110300.0,110290.0,0.0906296]
[1759086599908,1.34512555,110300.0,110290.0,0.0906296]
[1759086600104,2.02348367,110300.0,110290.0,0.0906296]
[1759086604012,2.36266273,110300.0,110290.0,0.0906296]
[1759086604211,0.1260952,110290.0,110280.0,0.0906379]
[1759086604515,0.82567022,110290.0,110280.0,0.0906379]
[1759086605416,0.83267022,110290.0,110280.0,0.0906379]
[1759086605809,0.83567022,110290.0,110280.0,0.0906379]
[1759086606417,1.21732112,110290.0,110280.0,0.0906379]
[1759086607010,0.1261035,110280.0,110270.0,0.0906471]
[1759086607316,1.64847852,110280.0,110270.0,0.0906471]
[1759086607718,2.01833313,110280.0,110270.0,0.0906471]
[1759086608216,2.02233313,110280.0,110270.0,0.0906471]